[Event "Early-Titled-Tuesday-Blitz-November-28-2023"]
[Site "Chess.com"]
[Date "2023.11.28"]
[Round "3"]
[White "Igor_Lysyj"]
[Black "Fore_Man"]
[Result "1-0"]
[WhiteElo "2832"]
[BlackElo "2376"]
[TimeControl "180+1"]
[EndTime "8:27:12 PST"]
[Termination "Igor_Lysyj won by resignation"]

1. d4 {[%clk 0:03:00.1]} 1... d5 {[%clk 0:02:56.9]} 2. c4 {[%clk 0:02:59.5]}
2... e6 {[%clk 0:02:57.4]} 3. Nf3 {[%clk 0:02:58.4]} 3... Nf6 {[%clk 0:02:57.5]}
4. g3 {[%clk 0:02:57.7]} 4... Be7 {[%clk 0:02:57.5]} 5. Bg2 {[%clk 0:02:57.4]}
5... O-O {[%clk 0:02:57.9]} 6. O-O {[%clk 0:02:57.6]} 6... c6 {[%clk 0:02:58.1]}
7. Qc2 {[%clk 0:02:55.3]} 7... b6 {[%clk 0:02:57.9]} 8. Rd1 {[%clk 0:02:52]}
8... Bb7 {[%clk 0:02:57.2]} 9. b3 {[%clk 0:02:47.5]} 9... Nbd7 {[%clk
0:02:54.2]} 10. Nc3 {[%clk 0:02:47.1]} 10... Qc8 {[%clk 0:02:52.5]} 11. Bb2
{[%clk 0:02:42.7]} 11... c5 {[%clk 0:02:52.4]} 12. cxd5 {[%clk 0:02:40]} 12...
Nxd5 {[%clk 0:02:51.9]} 13. Nxd5 {[%clk 0:02:38.1]} 13... Bxd5 {[%clk 0:02:51]}
14. e4 {[%clk 0:02:36.5]} 14... Bb7 {[%clk 0:02:44.3]} 15. d5 {[%clk 0:02:34]}
15... exd5 {[%clk 0:02:42.8]} 16. exd5 {[%clk 0:02:34]} 16... Bf6 {[%clk
0:02:41.9]} 17. Bh3 {[%clk 0:02:24.4]} 17... Bxb2 {[%clk 0:02:37.2]} 18. Qxb2
{[%clk 0:02:23.7]} 18... Qd8 {[%clk 0:02:37.3]} 19. Bg2 {[%clk 0:01:58.1]} 19...
Qf6 {[%clk 0:02:35.8]} 20. Qxf6 {[%clk 0:01:52.3]} 20... Nxf6 {[%clk 0:02:35.5]}
21. Ne5 {[%clk 0:01:52]} 21... Rad8 {[%clk 0:02:33.1]} 22. d6 {[%clk 0:01:45.8]}
22... Bxg2 {[%clk 0:02:26]} 23. Kxg2 {[%clk 0:01:45.6]} 23... Rfe8 {[%clk
0:02:19.9]} 24. f4 {[%clk 0:01:38.9]} 24... Ne4 {[%clk 0:02:15.3]} 25. d7 {[%clk
0:01:36]} 25... Re6 {[%clk 0:02:14.7]} 26. Kf3 {[%clk 0:01:26.1]} 26... Ng5+
{[%clk 0:01:50.5]} 27. Kg2 {[%clk 0:01:14.2]} 27... f6 {[%clk 0:01:46.2]} 28.
fxg5 {[%clk 0:01:01]} 28... fxe5 {[%clk 0:01:42.7]} 29. Rd5 {[%clk 0:01:00.5]}
29... Kf7 {[%clk 0:01:38.8]} 30. Kf3 {[%clk 0:00:56.7]} 30... Ke7 {[%clk
0:01:36.5]} 31. Rad1 {[%clk 0:00:56.2]} 31... Kf7 {[%clk 0:01:24.4]} 32. Ke4
{[%clk 0:00:55.2]} 32... Kg6 {[%clk 0:01:23.7]} 33. Rxe5 {[%clk 0:00:52.4]} 1-0

[Event "Early-Titled-Tuesday-Blitz-November-28-2023"]
[Site "Chess.com"]
[Date "2023.11.28"]
[Round "3"]
[White "atbenina64"]
[Black "Msb2"]
[Result "0-1"]
[WhiteElo "2778"]
[BlackElo "3043"]
[TimeControl "180+1"]
[EndTime "8:27:15 PST"]
[Termination "Msb2 won by resignation"]

1. c4 {[%clk 0:03:00.9]} 1... e6 {[%clk 0:03:00.3]} 2. Nc3 {[%clk 0:02:59.5]}
2... d5 {[%clk 0:03:01.2]} 3. d4 {[%clk 0:03:00.3]} 3... Bb4 {[%clk 0:03:01.6]}
4. a3 {[%clk 0:02:58.3]} 4... Bxc3+ {[%clk 0:03:01.7]} 5. bxc3 {[%clk
0:02:59.2]} 5... Nf6 {[%clk 0:03:02.5]} 6. e3 {[%clk 0:02:59.3]} 6... c6 {[%clk
0:03:02.9]} 7. a4 {[%clk 0:02:57.7]} 7... O-O {[%clk 0:03:02.8]} 8. Bd3 {[%clk
0:02:49.1]} 8... e5 {[%clk 0:02:59.4]} 9. dxe5 {[%clk 0:02:16.2]} 9... dxc4
{[%clk 0:02:59.5]} 10. exf6 {[%clk 0:02:16.5]} 10... Qxd3 {[%clk 0:02:57.6]} 11.
Qxd3 {[%clk 0:02:07.9]} 11... cxd3 {[%clk 0:02:58.5]} 12. fxg7 {[%clk 0:02:08]}
12... Kxg7 {[%clk 0:02:59.4]} 13. Nf3 {[%clk 0:02:01]} 13... Na6 {[%clk
0:02:59.6]} 14. Ba3 {[%clk 0:01:55]} 14... Rd8 {[%clk 0:02:56.1]} 15. O-O {[%clk
0:01:48]} 15... c5 {[%clk 0:02:50.5]} 16. c4 {[%clk 0:01:38.6]} 16... Be6 {[%clk
0:02:50.2]} 17. Rfc1 {[%clk 0:01:28.5]} 17... d2 {[%clk 0:02:35.9]} 18. Rd1
{[%clk 0:01:24.2]} 18... Bxc4 {[%clk 0:02:36.2]} 19. Rxd2 {[%clk 0:01:21.1]}
19... Rxd2 {[%clk 0:02:33.1]} 20. Nxd2 {[%clk 0:01:22]} 20... Be6 {[%clk
0:02:34]} 21. Rc1 {[%clk 0:01:17.1]} 21... b6 {[%clk 0:02:32.2]} 22. e4 {[%clk
0:01:11.9]} 22... Rd8 {[%clk 0:02:31.8]} 23. Bb2+ {[%clk 0:01:12.1]} 23... Kg6
{[%clk 0:02:27.5]} 24. Bc3 {[%clk 0:01:13]} 24... Rd3 {[%clk 0:02:25.2]} 25. f4
{[%clk 0:01:05.9]} 25... f5 {[%clk 0:02:17.7]} 26. exf5+ {[%clk 0:01:02.4]}
26... Kxf5 {[%clk 0:02:14.6]} 27. g3 {[%clk 0:00:49.9]} 27... Nc7 {[%clk
0:02:14]} 28. Nf1 {[%clk 0:00:28]} 28... Nd5 {[%clk 0:02:11.8]} 29. Be5 {[%clk
0:00:28.4]} 29... Ra3 {[%clk 0:02:07.4]} 30. h3 {[%clk 0:00:24.8]} 30... h5
{[%clk 0:02:04.6]} 31. Rd1 {[%clk 0:00:20.7]} 31... Rxa4 {[%clk 0:02:00.5]} 32.
g4+ {[%clk 0:00:20.5]} 32... hxg4 {[%clk 0:01:57.5]} 33. Ng3+ {[%clk 0:00:21.1]}
33... Kg6 {[%clk 0:01:56.4]} 34. hxg4 {[%clk 0:00:18.8]} 34... Nxf4 {[%clk
0:01:51.4]} 35. Rd6 {[%clk 0:00:16.1]} 35... Kf7 {[%clk 0:01:51.8]} 36. g5
{[%clk 0:00:15.2]} 36... Nh3+ {[%clk 0:01:51.5]} 37. Kh2 {[%clk 0:00:14.9]}
37... Nxg5 {[%clk 0:01:52.4]} 0-1

[Event "Early-Titled-Tuesday-Blitz-November-28-2023"]
[Site "Chess.com"]
[Date "2023.11.28"]
[Round "3"]
[White "inagreV"]
[Black "Chempiblinka"]
[Result "1-0"]
[WhiteElo "2433"]
[BlackElo "2257"]
[TimeControl "180+1"]
[EndTime "8:27:16 PST"]
[Termination "inagreV won on time"]

1. d4 {[%clk 0:02:51.8]} 1... Nf6 {[%clk 0:02:50.6]} 2. c4 {[%clk 0:02:47.9]}
2... g6 {[%clk 0:02:50.7]} 3. Nc3 {[%clk 0:02:46.4]} 3... Bg7 {[%clk 0:02:50.7]}
4. Nf3 {[%clk 0:02:46.5]} 4... d6 {[%clk 0:02:50.6]} 5. Bf4 {[%clk 0:02:46.7]}
5... O-O {[%clk 0:02:50.8]} 6. h3 {[%clk 0:02:47]} 6... Nbd7 {[%clk 0:02:40.2]}
7. e3 {[%clk 0:02:45.9]} 7... Qe8 {[%clk 0:02:31.2]} 8. Be2 {[%clk 0:02:44.4]}
8... e5 {[%clk 0:02:24.3]} 9. Bh2 {[%clk 0:02:43.7]} 9... c6 {[%clk 0:02:20.8]}
10. O-O {[%clk 0:02:41.4]} 10... Qe7 {[%clk 0:02:18.1]} 11. Qc2 {[%clk 0:02:41]}
11... Re8 {[%clk 0:02:13.5]} 12. Rfd1 {[%clk 0:02:40.6]} 12... b6 {[%clk
0:00:57.8]} 13. b4 {[%clk 0:02:35.7]} 13... Bb7 {[%clk 0:00:50.8]} 14. c5 {[%clk
0:02:29.8]} 14... bxc5 {[%clk 0:00:48.7]} 15. bxc5 {[%clk 0:02:29.5]} 15... dxc5
{[%clk 0:00:48.3]} 16. dxe5 {[%clk 0:02:29]} 16... Nd5 {[%clk 0:00:48.8]} 17.
Rab1 {[%clk 0:02:20.1]} 17... Nxe5 {[%clk 0:00:24.6]} 18. Nxe5 {[%clk
0:02:15.5]} 18... Nxc3 {[%clk 0:00:24.4]} 19. Qxc3 {[%clk 0:02:14.4]} 19... Bc8
{[%clk 0:00:15.6]} 20. f4 {[%clk 0:02:07.1]} 20... Bf5 {[%clk 0:00:11.8]} 21.
Rbc1 {[%clk 0:02:01.8]} 21... f6 {[%clk 0:00:10.1]} 22. Nxc6 {[%clk 0:01:45]}
22... Qxe3+ {[%clk 0:00:09.1]} 23. Qxe3 {[%clk 0:01:44.8]} 23... Rxe3 {[%clk
0:00:09.9]} 24. Bc4+ {[%clk 0:01:43.8]} 24... Kf8 {[%clk 0:00:09.6]} 25. Kf1
{[%clk 0:01:39.7]} 25... Rae8 {[%clk 0:00:07.2]} 26. Bg1 {[%clk 0:01:38.8]}
26... Ra3 {[%clk 0:00:05]} 27. Bxc5+ {[%clk 0:01:37.8]} 1-0

[Event "Early-Titled-Tuesday-Blitz-November-28-2023"]
[Site "Chess.com"]
[Date "2023.11.28"]
[Round "3"]
[White "Cayse"]
[Black "GP9isback23"]
[Result "1-0"]
[WhiteElo "2859"]
[BlackElo "2614"]
[TimeControl "180+1"]
[EndTime "8:27:18 PST"]
[Termination "Cayse won by resignation"]

1. e4 {[%clk 0:03:00.9]} 1... c6 {[%clk 0:02:59.3]} 2. Nf3 {[%clk 0:03:00.5]}
2... d5 {[%clk 0:02:59.8]} 3. d3 {[%clk 0:03:01.2]} 3... Bg4 {[%clk 0:02:59.8]}
4. h3 {[%clk 0:03:00.8]} 4... Bxf3 {[%clk 0:02:59.9]} 5. Qxf3 {[%clk 0:03:00.4]}
5... e6 {[%clk 0:03:00.6]} 6. g3 {[%clk 0:03:00.1]} 6... Nf6 {[%clk 0:02:58.7]}
7. Bg2 {[%clk 0:03:00.1]} 7... Be7 {[%clk 0:02:58.7]} 8. O-O {[%clk 0:02:59]}
8... O-O {[%clk 0:02:58.5]} 9. Nc3 {[%clk 0:02:55.1]} 9... a5 {[%clk 0:02:53.5]}
10. Qe2 {[%clk 0:02:51.8]} 10... Re8 {[%clk 0:02:48.6]} 11. f4 {[%clk 0:02:48]}
11... d4 {[%clk 0:02:28.2]} 12. Nd1 {[%clk 0:02:47.3]} 12... c5 {[%clk
0:02:27.1]} 13. Nf2 {[%clk 0:02:42.7]} 13... Nc6 {[%clk 0:02:27.1]} 14. g4
{[%clk 0:02:41.5]} 14... a4 {[%clk 0:02:26.4]} 15. g5 {[%clk 0:02:41.6]} 15...
Nd7 {[%clk 0:02:25.5]} 16. Ng4 {[%clk 0:02:41.7]} 16... Rc8 {[%clk 0:02:14.6]}
17. h4 {[%clk 0:02:41]} 17... b5 {[%clk 0:01:52.3]} 18. e5 {[%clk 0:02:37]}
18... Nb4 {[%clk 0:01:47.7]} 19. Be4 {[%clk 0:02:36.3]} 19... Bf8 {[%clk
0:01:42.9]} 20. h5 {[%clk 0:02:33.9]} 20... c4 {[%clk 0:01:30.7]} 21. a3 {[%clk
0:02:29.5]} 21... cxd3 {[%clk 0:01:29.2]} 22. cxd3 {[%clk 0:02:30.4]} 22... Nd5
{[%clk 0:01:18.7]} 23. Rf2 {[%clk 0:01:57.6]} 23... Nc5 {[%clk 0:01:07.3]} 24.
g6 {[%clk 0:01:53.8]} 24... fxg6 {[%clk 0:01:04.9]} 25. hxg6 {[%clk 0:01:48.3]}
25... h6 {[%clk 0:01:05.2]} 26. Rh2 {[%clk 0:01:44.8]} 26... Nb3 {[%clk
0:00:46.9]} 27. Bxd5 {[%clk 0:01:39.6]} 27... Qxd5 {[%clk 0:00:28.7]} 28. Rxh6
{[%clk 0:01:38.5]} 28... Rxc1+ {[%clk 0:00:08.1]} 29. Rxc1 {[%clk 0:01:36.6]}
29... Nxc1 {[%clk 0:00:09]} 30. Rh8+ {[%clk 0:01:36.3]} 1-0

[Event "Early-Titled-Tuesday-Blitz-November-28-2023"]
[Site "Chess.com"]
[Date "2023.11.28"]
[Round "3"]
[White "crazy_m_attack"]
[Black "grandemestregringo"]
[Result "0-1"]
[WhiteElo "2449"]
[BlackElo "2621"]
[TimeControl "180+1"]
[EndTime "8:27:20 PST"]
[Termination "grandemestregringo won by resignation"]

1. Nf3 {[%clk 0:03:00.9]} 1... f5 {[%clk 0:02:59.6]} 2. d4 {[%clk 0:02:59.3]}
2... Nf6 {[%clk 0:02:58.7]} 3. c4 {[%clk 0:02:56.6]} 3... g6 {[%clk 0:02:59.1]}
4. Nc3 {[%clk 0:02:55.9]} 4... Bg7 {[%clk 0:02:59.7]} 5. g3 {[%clk 0:02:56.2]}
5... O-O {[%clk 0:03:00.2]} 6. Bg2 {[%clk 0:02:56.5]} 6... d6 {[%clk 0:03:01.1]}
7. O-O {[%clk 0:02:56.7]} 7... Qe8 {[%clk 0:03:01.8]} 8. Qb3 {[%clk 0:02:45.4]}
8... Kh8 {[%clk 0:02:52.4]} 9. Ng5 {[%clk 0:02:36.9]} 9... Nc6 {[%clk
0:02:51.8]} 10. d5 {[%clk 0:02:30.1]} 10... Na5 {[%clk 0:02:49.9]} 11. Qb4
{[%clk 0:02:26.6]} 11... b6 {[%clk 0:02:45.7]} 12. Nb5 {[%clk 0:02:26.5]} 12...
Qd8 {[%clk 0:02:38]} 13. Nd4 {[%clk 0:02:04]} 13... Qd7 {[%clk 0:02:33]} 14.
Nge6 {[%clk 0:01:58.5]} 14... Rf7 {[%clk 0:02:24.1]} 15. Nxg7 {[%clk 0:01:28.1]}
15... Kxg7 {[%clk 0:02:23.3]} 16. Ne6+ {[%clk 0:01:27.6]} 16... Kg8 {[%clk
0:02:23.4]} 17. Qc3 {[%clk 0:01:27.5]} 17... c6 {[%clk 0:02:16.4]} 18. b4 {[%clk
0:01:26.4]} 18... cxd5 {[%clk 0:02:13.1]} 19. Ng5 {[%clk 0:01:20.7]} 19... Nxc4
{[%clk 0:02:11.3]} 20. Nxf7 {[%clk 0:01:20.4]} 20... Kxf7 {[%clk 0:02:10.1]} 21.
Bxd5+ {[%clk 0:01:20.5]} 21... Nxd5 {[%clk 0:02:09.5]} 22. Qxc4 {[%clk
0:01:20.9]} 22... Bb7 {[%clk 0:02:09.9]} 23. Bb2 {[%clk 0:01:12]} 23... Rc8
{[%clk 0:02:06]} 24. Qd4 {[%clk 0:01:11.5]} 24... e5 {[%clk 0:02:06.2]} 25. Qd2
{[%clk 0:01:07.6]} 25... Qb5 {[%clk 0:02:03.3]} 26. Rfd1 {[%clk 0:00:59.1]}
26... Ke6 {[%clk 0:01:51.1]} 27. e4 {[%clk 0:00:46.2]} 27... fxe4 {[%clk
0:01:45]} 28. Qg5 {[%clk 0:00:45.7]} 28... e3 {[%clk 0:01:32.6]} 29. fxe3 {[%clk
0:00:36.3]} 29... Qe2 {[%clk 0:01:31.8]} 30. Rd2 {[%clk 0:00:30.4]} 30... Qxd2
{[%clk 0:01:26.5]} 31. Qg4+ {[%clk 0:00:27.5]} 31... Ke7 {[%clk 0:01:26.1]} 0-1

[Event "Early-Titled-Tuesday-Blitz-November-28-2023"]
[Site "Chess.com"]
[Date "2023.11.28"]
[Round "3"]
[White "vishwa_vijeta"]
[Black "tacticthunder"]
[Result "1-0"]
[WhiteElo "2533"]
[BlackElo "2779"]
[TimeControl "180+1"]
[EndTime "8:27:21 PST"]
[Termination "vishwa_vijeta won by resignation"]

1. e4 {[%clk 0:03:00.9]} 1... b6 {[%clk 0:02:57.8]} 2. d4 {[%clk 0:02:51.6]}
2... Bb7 {[%clk 0:02:56.1]} 3. Nc3 {[%clk 0:02:51]} 3... e6 {[%clk 0:02:56.6]}
4. Nf3 {[%clk 0:02:50.5]} 4... Bb4 {[%clk 0:02:54.9]} 5. Bd3 {[%clk 0:02:50.5]}
5... Nf6 {[%clk 0:02:53.8]} 6. Qe2 {[%clk 0:02:50.7]} 6... d5 {[%clk 0:02:54.3]}
7. exd5 {[%clk 0:02:50.6]} 7... Nxd5 {[%clk 0:02:48.1]} 8. Bd2 {[%clk
0:02:49.8]} 8... Nd7 {[%clk 0:02:48.1]} 9. O-O {[%clk 0:02:48.7]} 9... N7f6
{[%clk 0:02:46.3]} 10. Nxd5 {[%clk 0:02:35.8]} 10... Nxd5 {[%clk 0:02:47.2]} 11.
c4 {[%clk 0:02:34.8]} 11... Bxd2 {[%clk 0:02:44.6]} 12. cxd5 {[%clk 0:02:34.7]}
12... Bh6 {[%clk 0:02:36.3]} 13. Bb5+ {[%clk 0:02:07.4]} 13... Ke7 {[%clk
0:02:34.8]} 14. dxe6 {[%clk 0:02:07.3]} 14... fxe6 {[%clk 0:02:33.1]} 15. Rfe1
{[%clk 0:02:07.6]} 15... Bd5 {[%clk 0:02:33.3]} 16. Bc6 {[%clk 0:01:58.6]} 16...
Rf8 {[%clk 0:02:24.7]} 17. Qe5 {[%clk 0:01:52.2]} 17... Kf7 {[%clk 0:02:12.5]}
18. Bxa8 {[%clk 0:01:40.3]} 18... Qxa8 {[%clk 0:02:11]} 19. Ng5+ {[%clk
0:01:39.1]} 19... Bxg5 {[%clk 0:02:02.5]} 20. Qxg5 {[%clk 0:01:38.6]} 20... Kg8
{[%clk 0:02:03.1]} 21. Rac1 {[%clk 0:01:33.4]} 21... Rf6 {[%clk 0:01:52.5]} 22.
Rxc7 {[%clk 0:00:44.2]} 22... Rg6 {[%clk 0:01:06.8]} 23. Qc1 {[%clk 0:00:43.5]}
23... Bxg2 {[%clk 0:01:01.9]} 24. Rc8+ {[%clk 0:00:43.3]} 24... Kf7 {[%clk
0:00:59.2]} 25. Qc7+ {[%clk 0:00:43]} 25... Kf6 {[%clk 0:00:58.7]} 26. Rxa8
{[%clk 0:00:42.8]} 1-0

[Event "Early-Titled-Tuesday-Blitz-November-28-2023"]
[Site "Chess.com"]
[Date "2023.11.28"]
[Round "3"]
[White "Dewarfd"]
[Black "AC_20"]
[Result "0-1"]
[WhiteElo "2117"]
[BlackElo "2372"]
[TimeControl "180+1"]
[EndTime "8:27:22 PST"]
[Termination "AC_20 won by resignation"]

1. d4 {[%clk 0:02:59.8]} 1... Nf6 {[%clk 0:02:59.8]} 2. e3 {[%clk 0:03:00.2]}
2... e6 {[%clk 0:02:59.9]} 3. Nf3 {[%clk 0:03:00.3]} 3... Be7 {[%clk 0:02:56.9]}
4. Bd3 {[%clk 0:03:00.2]} 4... d5 {[%clk 0:02:56.1]} 5. O-O {[%clk 0:03:00.1]}
5... c5 {[%clk 0:02:56.5]} 6. b3 {[%clk 0:02:59.8]} 6... Nc6 {[%clk 0:02:56.6]}
7. a3 {[%clk 0:03:00]} 7... O-O {[%clk 0:02:56.7]} 8. Bb2 {[%clk 0:03:00.3]}
8... b6 {[%clk 0:02:56]} 9. Nbd2 {[%clk 0:03:00.4]} 9... Bb7 {[%clk 0:02:56.3]}
10. dxc5 {[%clk 0:02:55]} 10... Rc8 {[%clk 0:02:56.9]} 11. cxb6 {[%clk
0:02:54.4]} 11... Qxb6 {[%clk 0:02:57]} 12. c4 {[%clk 0:02:52.7]} 12... Rfd8
{[%clk 0:02:55.3]} 13. cxd5 {[%clk 0:02:51.1]} 13... Nxd5 {[%clk 0:02:56.2]} 14.
Nc4 {[%clk 0:02:46.2]} 14... Qc7 {[%clk 0:02:54.6]} 15. Rc1 {[%clk 0:02:40.2]}
15... Qb8 {[%clk 0:02:52.4]} 16. Qe2 {[%clk 0:02:36.8]} 16... a5 {[%clk
0:02:42.5]} 17. Nce5 {[%clk 0:02:25.3]} 17... Nxe5 {[%clk 0:02:37.7]} 18. Bxe5
{[%clk 0:02:23.1]} 18... Qa8 {[%clk 0:02:37.9]} 19. Rxc8 {[%clk 0:02:13.3]}
19... Rxc8 {[%clk 0:02:37.3]} 20. Bb2 {[%clk 0:02:03.7]} 20... Nc3 {[%clk
0:02:36.4]} 21. Bxc3 {[%clk 0:01:50.8]} 21... Rxc3 {[%clk 0:02:34.1]} 22. Bc4
{[%clk 0:01:51]} 22... Bxa3 {[%clk 0:02:31.7]} 23. Rd1 {[%clk 0:01:39.1]} 23...
Bb4 {[%clk 0:02:12.8]} 24. Ne1 {[%clk 0:01:18.5]} 24... h6 {[%clk 0:02:05.9]}
25. f3 {[%clk 0:01:15.5]} 25... a4 {[%clk 0:02:05.3]} 26. Nd3 {[%clk 0:01:08.5]}
26... Ba5 {[%clk 0:01:48.6]} 27. Rb1 {[%clk 0:00:33.6]} 27... axb3 {[%clk
0:01:43.2]} 28. Bxb3 {[%clk 0:00:33.3]} 28... Ba6 {[%clk 0:01:42]} 29. Bc2
{[%clk 0:00:21.5]} 29... Qc8 {[%clk 0:01:39.4]} 30. Ne1 {[%clk 0:00:13.3]} 30...
Bxe2 {[%clk 0:01:37.8]} 0-1

[Event "Early-Titled-Tuesday-Blitz-November-28-2023"]
[Site "Chess.com"]
[Date "2023.11.28"]
[Round "3"]
[White "RobertJFischer71"]
[Black "ElDivis"]
[Result "0-1"]
[WhiteElo "2611"]
[BlackElo "2476"]
[TimeControl "180+1"]
[EndTime "8:27:23 PST"]
[Termination "ElDivis won by resignation"]

1. e4 {[%clk 0:03:00.9]} 1... c5 {[%clk 0:02:58.4]} 2. Nf3 {[%clk 0:02:59.6]}
2... d6 {[%clk 0:02:57.6]} 3. d4 {[%clk 0:02:59.8]} 3... cxd4 {[%clk 0:02:58.5]}
4. Nxd4 {[%clk 0:03:00.7]} 4... Nf6 {[%clk 0:02:59.2]} 5. Nc3 {[%clk 0:03:00.3]}
5... g6 {[%clk 0:02:59.8]} 6. Be3 {[%clk 0:02:53.3]} 6... Bg7 {[%clk 0:03:00.1]}
7. f3 {[%clk 0:02:53.1]} 7... O-O {[%clk 0:03:00.4]} 8. g4 {[%clk 0:02:53.5]}
8... Nc6 {[%clk 0:02:57.8]} 9. Qd2 {[%clk 0:02:51.1]} 9... Bxg4 {[%clk
0:02:57.5]} 10. fxg4 {[%clk 0:02:45.4]} 10... Nxg4 {[%clk 0:02:58.4]} 11. Nb3
{[%clk 0:02:45.6]} 11... d5 {[%clk 0:02:55.4]} 12. O-O-O {[%clk 0:02:03.6]}
12... d4 {[%clk 0:02:50.2]} 13. Nxd4 {[%clk 0:01:30.3]} 13... Nxd4 {[%clk
0:02:48.2]} 14. Bxd4 {[%clk 0:01:29.1]} 14... Bh6 {[%clk 0:02:43.1]} 15. Qxh6
{[%clk 0:01:29.1]} 15... Nxh6 {[%clk 0:02:44]} 16. Be3 {[%clk 0:01:29.8]} 16...
Qa5 {[%clk 0:02:33.8]} 17. Bxh6 {[%clk 0:01:28.6]} 17... Rfc8 {[%clk 0:02:34.7]}
18. Nd5 {[%clk 0:01:23.4]} 18... Qxa2 {[%clk 0:02:23.8]} 19. Nxe7+ {[%clk
0:01:19.3]} 19... Kh8 {[%clk 0:02:24.4]} 20. Nxc8 {[%clk 0:01:17.2]} 20... Rxc8
{[%clk 0:02:23.3]} 21. Bd3 {[%clk 0:01:06.9]} 21... Qa1+ {[%clk 0:02:23.6]} 22.
Kd2 {[%clk 0:01:07]} 22... Qxb2 {[%clk 0:02:24.5]} 23. Rb1 {[%clk 0:01:01.2]}
23... Qd4 {[%clk 0:02:16.5]} 24. Rhf1 {[%clk 0:00:52.4]} 24... Qc3+ {[%clk
0:02:11.4]} 25. Ke2 {[%clk 0:00:50.8]} 25... f5 {[%clk 0:02:09.3]} 26. Rxb7
{[%clk 0:00:20.6]} 26... fxe4 {[%clk 0:02:09.6]} 27. Bxe4 {[%clk 0:00:20.7]}
27... Qc4+ {[%clk 0:02:08.3]} 28. Bd3 {[%clk 0:00:15.6]} 28... Qg4+ {[%clk
0:02:02]} 29. Kd2 {[%clk 0:00:10.6]} 29... Qg2+ {[%clk 0:01:59.8]} 30. Kc1
{[%clk 0:00:07.3]} 30... Qxb7 {[%clk 0:01:59.1]} 31. Bg5 {[%clk 0:00:02.9]}
31... Qg2 {[%clk 0:01:51.9]} 32. Re1 {[%clk 0:00:01.9]} 32... Qxg5+ {[%clk
0:01:50.6]} 0-1

[Event "Early-Titled-Tuesday-Blitz-November-28-2023"]
[Site "Chess.com"]
[Date "2023.11.28"]
[Round "3"]
[White "Journey_to_GrandMaster_YT"]
[Black "Nadeev_Sergey"]
[Result "0-1"]
[WhiteElo "2549"]
[BlackElo "2375"]
[TimeControl "180+1"]
[EndTime "8:27:23 PST"]
[Termination "Nadeev_Sergey won by checkmate"]

1. d4 {[%clk 0:03:00.9]} 1... Nf6 {[%clk 0:02:59.8]} 2. Nf3 {[%clk 0:03:01.1]}
2... d5 {[%clk 0:02:59.7]} 3. c4 {[%clk 0:03:01.1]} 3... c6 {[%clk 0:02:59.6]}
4. Nc3 {[%clk 0:03:01.8]} 4... dxc4 {[%clk 0:02:59.4]} 5. a4 {[%clk 0:03:02.5]}
5... Bf5 {[%clk 0:02:59.6]} 6. e3 {[%clk 0:03:03.2]} 6... e6 {[%clk 0:03:00]} 7.
Bxc4 {[%clk 0:03:03.9]} 7... Bb4 {[%clk 0:03:00.4]} 8. O-O {[%clk 0:03:04.4]}
8... Nbd7 {[%clk 0:03:00.8]} 9. Qe2 {[%clk 0:03:05]} 9... O-O {[%clk 0:03:01.1]}
10. e4 {[%clk 0:03:05.2]} 10... Bg6 {[%clk 0:03:01.7]} 11. e5 {[%clk 0:03:05.7]}
11... Nd5 {[%clk 0:03:01.5]} 12. Nxd5 {[%clk 0:03:06.3]} 12... cxd5 {[%clk
0:03:01.1]} 13. Bd3 {[%clk 0:03:06.9]} 13... Nb8 {[%clk 0:02:48.6]} 14. Bg5
{[%clk 0:03:02.2]} 14... Be7 {[%clk 0:02:45.8]} 15. Bxe7 {[%clk 0:02:49.4]}
15... Qxe7 {[%clk 0:02:46.7]} 16. Rfc1 {[%clk 0:02:42.1]} 16... Nc6 {[%clk
0:02:43.8]} 17. Rc3 {[%clk 0:02:38.7]} 17... Rac8 {[%clk 0:02:29]} 18. Rac1
{[%clk 0:02:38.8]} 18... Bxd3 {[%clk 0:02:08.5]} 19. Qxd3 {[%clk 0:02:38.6]}
19... Rc7 {[%clk 0:02:04]} 20. Rc5 {[%clk 0:02:29.4]} 20... Rfc8 {[%clk
0:02:00]} 21. Qc3 {[%clk 0:02:29.5]} 21... b6 {[%clk 0:01:54]} 22. Rxc6 {[%clk
0:01:44.3]} 22... Rxc6 {[%clk 0:01:54.9]} 23. Qxc6 {[%clk 0:01:44.6]} 23... Rxc6
{[%clk 0:01:55.2]} 24. Rxc6 {[%clk 0:01:45.3]} 24... g5 {[%clk 0:01:53.5]} 25.
h3 {[%clk 0:01:41]} 25... h5 {[%clk 0:01:53.2]} 26. g4 {[%clk 0:01:28.8]} 26...
hxg4 {[%clk 0:01:52.2]} 27. hxg4 {[%clk 0:01:29.7]} 27... Qb4 {[%clk 0:01:50.8]}
28. Rc7 {[%clk 0:01:18]} 28... Qxa4 {[%clk 0:01:49.2]} 29. Nxg5 {[%clk
0:01:13.1]} 29... Qxd4 {[%clk 0:01:48.1]} 30. Nxf7 {[%clk 0:01:13.1]} 30...
Qxg4+ {[%clk 0:01:46.5]} 31. Kf1 {[%clk 0:01:13.7]} 31... Qd1+ {[%clk
0:01:31.1]} 32. Kg2 {[%clk 0:01:13.6]} 32... d4 {[%clk 0:01:31.2]} 33. Nd6
{[%clk 0:01:02.5]} 33... d3 {[%clk 0:01:28.2]} 34. Ne8 {[%clk 0:00:58.6]} 34...
Qg4+ {[%clk 0:01:22.4]} 35. Kf1 {[%clk 0:00:58.6]} 35... Qe2+ {[%clk 0:01:19.6]}
36. Kg2 {[%clk 0:00:49.4]} 36... Qxe5 {[%clk 0:01:18.6]} 37. Rd7 {[%clk
0:00:49.2]} 37... Qe4+ {[%clk 0:01:09.8]} 38. Kf1 {[%clk 0:00:47.9]} 38... Qh1#
{[%clk 0:01:09]} 0-1